[Event "Live Chess"]
[Site "Chess.com"]
[Date "2023.05.21"]
[Round "-"]
[White "Biranidun"]
[Black "ZackirtyChess"]
[Result "1-0"]
[WhiteElo "2691"]
[BlackElo "1159"]
[TimeControl "300"]
[EndTime "16:21:11 PDT"]
[Termination "Biranidun won by checkmate"]

1. e4 {[%clk 0:04:59.6]} 1... e5 {[%clk 0:04:56.9]} 2. Nf3 {[%clk 0:04:58.8]}
2... Nc6 {[%clk 0:04:54.2]} 3. Bc4 {[%clk 0:04:58.1]} 3... Nf6 {[%clk
0:04:49.9]} 4. Ng5 {[%clk 0:04:57.4]} 4... d5 {[%clk 0:04:47.7]} 5. exd5 {[%clk
0:04:57.3]} 5... Na5 {[%clk 0:04:46.1]} 6. Bb5+ {[%clk 0:04:56.8]} 6... Bd7
{[%clk 0:04:42.8]} 7. Qe2 {[%clk 0:04:55.4]} 7... Bd6 {[%clk 0:04:35.1]} 8. Nc3
{[%clk 0:04:47.6]} 8... c6 {[%clk 0:04:33.1]} 9. dxc6 {[%clk 0:04:46.6]} 9...
Bxc6 {[%clk 0:04:28.9]} 10. Bxc6+ {[%clk 0:04:45.5]} 10... bxc6 {[%clk
0:04:28.8]} 11. d3 {[%clk 0:04:43.4]} 11... h6 {[%clk 0:04:26.8]} 12. Nge4
{[%clk 0:04:42.7]} 12... Nxe4 {[%clk 0:04:23]} 13. Nxe4 {[%clk 0:04:42.3]} 13...
O-O {[%clk 0:04:20.9]} 14. Bd2 {[%clk 0:04:38.9]} 14... Qb6 {[%clk 0:04:12.9]}
15. Nxd6 {[%clk 0:04:37]} 15... Qxb2 {[%clk 0:04:11.1]} 16. O-O {[%clk
0:04:35.7]} 16... Nb7 {[%clk 0:04:02.4]} 17. Rab1 {[%clk 0:04:34]} 17... Qxa2
{[%clk 0:03:59.4]} 18. Rxb7 {[%clk 0:04:32.9]} 18... Rab8 {[%clk 0:03:56.9]} 19.
Rxb8 {[%clk 0:04:30.7]} 19... Rxb8 {[%clk 0:03:55.2]} 20. Qxe5 {[%clk
0:04:30.3]} 20... Rd8 {[%clk 0:03:48.6]} 21. Nf5 {[%clk 0:04:25.1]} 21... f6
{[%clk 0:03:40.4]} 22. Qc7 {[%clk 0:04:23.9]} 22... Qd5 {[%clk 0:03:33.3]} 23.
Qxg7# {[%clk 0:04:22.5]} 1-0

[Event "Live Chess"]
[Site "Chess.com"]
[Date "2023.05.21"]
[Round "-"]
[White "Cimon"]
[Black "birdseed45"]
[Result "1-0"]
[WhiteElo "1877"]
[BlackElo "1857"]
[TimeControl "300"]
[EndTime "16:21:18 PDT"]
[Termination "Cimon won by resignation"]

1. Nf3 {[%clk 0:04:58.4]} 1... c5 {[%clk 0:04:59]} 2. c3 {[%clk 0:04:56.3]} 2...
Nc6 {[%clk 0:04:58.3]} 3. d4 {[%clk 0:04:52.7]} 3... cxd4 {[%clk 0:04:58.2]} 4.
cxd4 {[%clk 0:04:51]} 4... d5 {[%clk 0:04:57.6]} 5. Nc3 {[%clk 0:04:48.4]} 5...
g6 {[%clk 0:04:56.6]} 6. Bf4 {[%clk 0:04:46.5]} 6... Bg7 {[%clk 0:04:54.9]} 7.
e3 {[%clk 0:04:43.8]} 7... Nf6 {[%clk 0:04:51]} 8. Bd3 {[%clk 0:04:41.7]} 8...
O-O {[%clk 0:04:43.9]} 9. O-O {[%clk 0:04:39.5]} 9... a6 {[%clk 0:04:40.4]} 10.
Rc1 {[%clk 0:04:34.2]} 10... Nh5 {[%clk 0:04:33.6]} 11. Bg5 {[%clk 0:04:27.3]}
11... h6 {[%clk 0:04:29.6]} 12. Bh4 {[%clk 0:04:25.5]} 12... g5 {[%clk
0:04:26.7]} 13. Nxg5 {[%clk 0:04:15.6]} 13... hxg5 {[%clk 0:04:23.2]} 14. Qxh5
{[%clk 0:04:13.8]} 14... f5 {[%clk 0:04:12.7]} 15. Bxg5 {[%clk 0:04:07.9]} 15...
Qe8 {[%clk 0:04:10.7]} 16. Qxe8 {[%clk 0:03:56.5]} 16... Rxe8 {[%clk 0:04:10.6]}
17. Nxd5 {[%clk 0:03:55.1]} 17... Be6 {[%clk 0:04:05.1]} 18. Nc7 {[%clk
0:03:51.7]} 18... Bf7 {[%clk 0:03:54.6]} 19. Nxa8 {[%clk 0:03:48.5]} 19... Rxa8
{[%clk 0:03:54.5]} 20. Bc4 {[%clk 0:03:42.1]} 20... e6 {[%clk 0:03:46.8]} 21. a3
{[%clk 0:03:38.1]} 21... b5 {[%clk 0:03:41.9]} 22. Bd3 {[%clk 0:03:34.5]} 22...
Na5 {[%clk 0:03:39.1]} 23. Rc7 {[%clk 0:03:27.1]} 23... Bf8 {[%clk 0:03:33.7]}
24. d5 {[%clk 0:03:16.2]} 24... Bd6 {[%clk 0:03:26.1]} 25. Rc2 {[%clk 0:03:09]}
25... exd5 {[%clk 0:03:20.9]} 26. Bxf5 {[%clk 0:03:07.4]} 26... Nc4 {[%clk
0:03:19.4]} 27. Bd3 {[%clk 0:02:53.4]} 27... Ne5 {[%clk 0:03:15.3]} 28. Be2
{[%clk 0:02:52]} 28... Kh7 {[%clk 0:03:09.8]} 29. Bf4 {[%clk 0:02:50.1]} 29...
Rg8 {[%clk 0:03:02.7]} 30. Bxe5 {[%clk 0:02:46]} 30... Bxe5 {[%clk 0:03:02.6]}
31. Bd3+ {[%clk 0:02:43.8]} 31... Kh6 {[%clk 0:02:58.4]} 32. g3 {[%clk
0:02:42.2]} 32... Bh5 {[%clk 0:02:54]} 33. Kg2 {[%clk 0:02:38.9]} 33... Rf8
{[%clk 0:02:48]} 34. f4 {[%clk 0:02:36.8]} 34... Bb8 {[%clk 0:02:43.4]} 35. Rc6+
{[%clk 0:02:35]} 35... Kg7 {[%clk 0:02:40]} 36. h3 {[%clk 0:02:21.3]} 36... Ba7
{[%clk 0:02:36.5]} 37. Re1 {[%clk 0:02:16.3]} 37... Bf7 {[%clk 0:02:30.6]} 38.
Rxa6 {[%clk 0:02:13]} 38... Bc5 {[%clk 0:02:26.1]} 39. b4 {[%clk 0:02:10.5]} 1-0

[Event "Live Chess"]
[Site "Chess.com"]
[Date "2023.05.21"]
[Round "-"]
[White "mattihelenius2"]
[Black "nigelst"]
[Result "0-1"]
[WhiteElo "489"]
[BlackElo "1801"]
[TimeControl "300"]
[EndTime "16:21:30 PDT"]
[Termination "nigelst won by resignation"]

1. d4 {[%clk 0:04:58.4]} 1... Nf6 {[%clk 0:04:57.2]} 2. c4 {[%clk 0:04:56]} 2...
e6 {[%clk 0:04:56.2]} 3. Nf3 {[%clk 0:04:53.9]} 3... Bb4+ {[%clk 0:04:54.3]} 4.
Nc3 {[%clk 0:04:48.5]} 4... c5 {[%clk 0:04:51.9]} 5. a3 {[%clk 0:04:46.3]} 5...
Bxc3+ {[%clk 0:04:50.1]} 6. bxc3 {[%clk 0:04:45.1]} 6... O-O {[%clk 0:04:46.5]}
7. dxc5 {[%clk 0:04:43.7]} 7... Qc7 {[%clk 0:04:43.7]} 8. Ne5 {[%clk 0:04:42.6]}
8... Qxe5 {[%clk 0:04:40.8]} 9. e3 {[%clk 0:04:37.3]} 9... Qxc3+ {[%clk
0:04:38.5]} 10. Bd2 {[%clk 0:04:33.3]} 10... Qe5 {[%clk 0:04:36.1]} 11. Rb1
{[%clk 0:04:13.5]} 11... Ne4 {[%clk 0:04:28.6]} 12. Qc1 {[%clk 0:04:00.3]} 12...
Qf5 {[%clk 0:04:20.4]} 13. Bc3 {[%clk 0:03:53.8]} 13... Qxf2+ {[%clk 0:04:10.7]}
14. Kd1 {[%clk 0:03:44.9]} 14... Qf5 {[%clk 0:04:07.1]} 15. Bd3 {[%clk
0:03:38.2]} 15... Nf2+ {[%clk 0:04:04.4]} 16. Ke2 {[%clk 0:03:35.6]} 16... Nxd3
{[%clk 0:04:01.1]} 17. Qd2 {[%clk 0:03:33.2]} 17... Nxc5 {[%clk 0:03:55.2]} 18.
Qd4 {[%clk 0:03:27.1]} 18... f6 {[%clk 0:03:41.2]} 19. Rhf1 {[%clk 0:03:24.1]}
19... Qh5+ {[%clk 0:03:37.9]} 20. Ke1 {[%clk 0:03:22]} 20... b6 {[%clk
0:03:32.4]} 21. Rb5 {[%clk 0:03:18]} 21... Nc6 {[%clk 0:03:30.6]} 22. a4 {[%clk
0:03:10.8]} 22... Nxd4 {[%clk 0:03:28.1]} 0-1

[Event "Live Chess"]
[Site "Chess.com"]
[Date "2023.05.21"]
[Round "-"]
[White "chessfiction"]
[Black "LiamClery2020"]
[Result "1-0"]
[WhiteElo "2343"]
[BlackElo "2062"]
[TimeControl "300"]
[EndTime "16:21:47 PDT"]
[Termination "chessfiction won by resignation"]

1. e4 {[%clk 0:04:55.3]} 1... Nf6 {[%clk 0:04:59.9]} 2. e5 {[%clk 0:04:54.3]}
2... Nd5 {[%clk 0:04:57.1]} 3. Nc3 {[%clk 0:04:54.2]} 3... Nxc3 {[%clk
0:04:55.6]} 4. dxc3 {[%clk 0:04:54.1]} 4... d6 {[%clk 0:04:55.5]} 5. Bc4 {[%clk
0:04:52.4]} 5... Nc6 {[%clk 0:04:54.4]} 6. e6 {[%clk 0:04:50.1]} 6... Bxe6
{[%clk 0:04:48.6]} 7. Bxe6 {[%clk 0:04:48.5]} 7... fxe6 {[%clk 0:04:48.5]} 8.
Nf3 {[%clk 0:04:47]} 8... g6 {[%clk 0:04:47.3]} 9. Ng5 {[%clk 0:04:45.8]} 9...
Qd7 {[%clk 0:04:45.7]} 10. Qe2 {[%clk 0:04:43.1]} 10... e5 {[%clk 0:04:42.8]}
11. Be3 {[%clk 0:04:37.8]} 11... Bg7 {[%clk 0:04:41.6]} 12. O-O-O {[%clk
0:04:36.6]} 12... O-O-O {[%clk 0:04:37.5]} 13. Nf7 {[%clk 0:04:34.6]} 13... Qe6
{[%clk 0:04:35]} 14. Nxh8 {[%clk 0:04:32.5]} 14... Bxh8 {[%clk 0:04:33]} 15. Kb1
{[%clk 0:04:30.4]} 15... d5 {[%clk 0:04:27.9]} 16. Rhe1 {[%clk 0:04:27.1]} 16...
Qf5 {[%clk 0:04:25.3]} 17. Bc5 {[%clk 0:04:23.6]} 17... d4 {[%clk 0:04:21.8]}
18. cxd4 {[%clk 0:04:18.7]} 18... exd4 {[%clk 0:04:20.6]} 19. Qe6+ {[%clk
0:04:01.1]} 19... Qxe6 {[%clk 0:04:16.6]} 20. Rxe6 {[%clk 0:04:01]} 20... Rd5
{[%clk 0:04:16.4]} 21. Bxe7 {[%clk 0:03:56.2]} 21... Kd7 {[%clk 0:04:14.9]} 22.
Rde1 {[%clk 0:03:54.8]} 22... d3 {[%clk 0:04:07.6]} 23. cxd3 {[%clk 0:03:48.8]}
23... Rxd3 {[%clk 0:04:06.9]} 24. Ba3 {[%clk 0:03:47.4]} 24... Rd2 {[%clk
0:04:04]} 25. R6e2 {[%clk 0:03:45.1]} 25... Rxe2 {[%clk 0:04:00.2]} 26. Rxe2
{[%clk 0:03:45]} 26... Nd4 {[%clk 0:03:58.8]} 27. Rd2 {[%clk 0:03:42.7]} 27...
Kc6 {[%clk 0:03:58.3]} 28. b3 {[%clk 0:03:40.1]} 28... Nb5 {[%clk 0:03:56.6]}
29. Bb2 {[%clk 0:03:38.2]} 29... Bc3 {[%clk 0:03:55.3]} 30. Rc2 {[%clk
0:03:36.9]} 1-0

[Event "Live Chess"]
[Site "Chess.com"]
[Date "2023.05.21"]
[Round "-"]
[White "Long1968"]
[Black "educatedlad"]
[Result "0-1"]
[WhiteElo "1201"]
[BlackElo "1617"]
[TimeControl "300"]
[EndTime "16:22:09 PDT"]
[Termination "educatedlad won on time"]

1. e4 {[%clk 0:04:57.2]} 1... e6 {[%clk 0:04:59.5]} 2. d4 {[%clk 0:04:54.8]}
2... d5 {[%clk 0:04:59.4]} 3. Nc3 {[%clk 0:04:51.9]} 3... Nf6 {[%clk 0:04:58.1]}
4. exd5 {[%clk 0:04:46.3]} 4... exd5 {[%clk 0:04:56]} 5. Bd3 {[%clk 0:04:40.9]}
5... Nc6 {[%clk 0:04:54.3]} 6. Nf3 {[%clk 0:04:37]} 6... Nb4 {[%clk 0:04:53.6]}
7. O-O {[%clk 0:04:28]} 7... Nxd3 {[%clk 0:04:52.1]} 8. Qxd3 {[%clk 0:04:24.8]}
8... Be7 {[%clk 0:04:36.1]} 9. Re1 {[%clk 0:04:21.4]} 9... O-O {[%clk 0:04:17]}
10. Bg5 {[%clk 0:04:15.9]} 10... h6 {[%clk 0:04:13.7]} 11. Bf4 {[%clk
0:04:05.5]} 11... Re8 {[%clk 0:04:10.5]} 12. Re2 {[%clk 0:03:59.4]} 12... c6
{[%clk 0:04:00.2]} 13. Rae1 {[%clk 0:03:55.5]} 13... Be6 {[%clk 0:03:52.3]} 14.
Ne5 {[%clk 0:03:42.2]} 14... Qb6 {[%clk 0:03:39.8]} 15. Ng6 {[%clk 0:03:27.7]}
15... Ne4 {[%clk 0:03:29]} 16. Nxe7+ {[%clk 0:03:16.4]} 16... Rxe7 {[%clk
0:03:27.7]} 17. Nxe4 {[%clk 0:03:12.7]} 17... dxe4 {[%clk 0:03:26.2]} 18. Qxe4
{[%clk 0:03:01.3]} 18... Rae8 {[%clk 0:03:17.9]} 19. c4 {[%clk 0:01:58]} 19...
Bxc4 {[%clk 0:03:16]} 20. Qxe7 {[%clk 0:01:49.8]} 20... Rxe7 {[%clk 0:03:14.7]}
21. Rxe7 {[%clk 0:01:47]} 21... Qxb2 {[%clk 0:03:12.2]} 22. Bc1 {[%clk
0:00:20.2]} 22... Qxd4 {[%clk 0:03:06.8]} 23. Rxb7 {[%clk 0:00:13.6]} 23... Qc3
{[%clk 0:03:05.7]} 24. Rbe7 {[%clk 0:00:05.9]} 24... Bxa2 {[%clk 0:03:01.6]} 0-1

[Event "Live Chess"]
[Site "Chess.com"]
[Date "2023.05.21"]
[Round "-"]
[White "GiacoPietro"]
[Black "smoggyrabbit"]
[Result "0-1"]
[WhiteElo "627"]
[BlackElo "1712"]
[TimeControl "300"]
[EndTime "16:22:19 PDT"]
[Termination "smoggyrabbit won by resignation"]

1. g3 {[%clk 0:04:57.7]} 1... d5 {[%clk 0:04:56.2]} 2. Bg2 {[%clk 0:04:56.1]}
2... c5 {[%clk 0:04:53.4]} 3. c4 {[%clk 0:04:54.2]} 3... Nf6 {[%clk 0:04:47.2]}
4. cxd5 {[%clk 0:04:51]} 4... Nxd5 {[%clk 0:04:46.2]} 5. Nc3 {[%clk 0:04:47.5]}
5... Nxc3 {[%clk 0:04:43.8]} 6. bxc3 {[%clk 0:04:46]} 6... Qc7 {[%clk 0:04:27]}
7. Nf3 {[%clk 0:04:37.6]} 7... Nc6 {[%clk 0:04:25.2]} 8. e3 {[%clk 0:04:29.3]}
8... g6 {[%clk 0:04:22.2]} 9. O-O {[%clk 0:04:27.7]} 9... Bg7 {[%clk 0:04:20.8]}
10. Bb2 {[%clk 0:04:17.3]} 10... Bg4 {[%clk 0:04:06.9]} 11. h3 {[%clk
0:04:07.9]} 11... Bxf3 {[%clk 0:04:01.8]} 12. Bxf3 {[%clk 0:04:06.2]} 12... O-O
{[%clk 0:03:57.9]} 13. d4 {[%clk 0:04:01.1]} 13... cxd4 {[%clk 0:03:51.9]} 14.
cxd4 {[%clk 0:03:59]} 14... Rfd8 {[%clk 0:03:38.7]} 15. Rc1 {[%clk 0:03:50.7]}
15... Qb6 {[%clk 0:03:24.6]} 16. Qd2 {[%clk 0:03:45.3]} 16... e5 {[%clk
0:03:19.3]} 17. d5 {[%clk 0:03:41.9]} 17... Ne7 {[%clk 0:03:09.3]} 18. Bxe5
{[%clk 0:03:27.3]} 18... Bxe5 {[%clk 0:03:05.4]} 19. e4 {[%clk 0:03:23.9]} 19...
Qf6 {[%clk 0:01:58.9]} 20. Kg2 {[%clk 0:03:11.7]} 20... Rac8 {[%clk 0:01:56.2]}
21. Rxc8 {[%clk 0:03:02.5]} 21... Rxc8 {[%clk 0:01:56.1]} 22. Qb4 {[%clk
0:02:54.6]} 22... b6 {[%clk 0:01:23.2]} 23. Qa3 {[%clk 0:02:47.3]} 23... Rc3
{[%clk 0:01:19.2]} 24. Qxa7 {[%clk 0:02:29.5]} 24... Qxf3+ {[%clk 0:01:16.4]}
25. Kg1 {[%clk 0:02:26.6]} 25... Bc7 {[%clk 0:00:34.8]} 26. Qa8+ {[%clk
0:02:08.4]} 26... Kg7 {[%clk 0:00:32.3]} 27. Qe8 {[%clk 0:02:01.9]} 27... Bd6
{[%clk 0:00:25.6]} 28. Qb5 {[%clk 0:01:53.9]} 28... Bc5 {[%clk 0:00:19.2]} 29.
d6 {[%clk 0:01:36.4]} 29... Qxg3+ {[%clk 0:00:17.8]} 0-1

[Event "Live Chess"]
[Site "Chess.com"]
[Date "2023.05.21"]
[Round "-"]
[White "KeithArkell"]
[Black "AbilifyXL"]
[Result "1-0"]
[WhiteElo "2611"]
[BlackElo "1979"]
[TimeControl "300"]
[EndTime "16:22:21 PDT"]
[Termination "KeithArkell won by resignation"]

1. d4 {[%clk 0:04:57.6]} 1... d5 {[%clk 0:04:59.2]} 2. Nf3 {[%clk 0:04:56.5]}
2... c6 {[%clk 0:04:59.1]} 3. c4 {[%clk 0:04:56]} 3... Nf6 {[%clk 0:04:59]} 4.
Nc3 {[%clk 0:04:55.4]} 4... a6 {[%clk 0:04:58.4]} 5. e3 {[%clk 0:04:53.3]} 5...
b5 {[%clk 0:04:57.6]} 6. b3 {[%clk 0:04:52.8]} 6... Bg4 {[%clk 0:04:56.1]} 7.
Be2 {[%clk 0:04:51.6]} 7... e6 {[%clk 0:04:55.4]} 8. h3 {[%clk 0:04:45.7]} 8...
Bxf3 {[%clk 0:04:53.4]} 9. Bxf3 {[%clk 0:04:44.5]} 9... Nbd7 {[%clk 0:04:53.3]}
10. O-O {[%clk 0:04:42.1]} 10... Be7 {[%clk 0:04:52.3]} 11. a4 {[%clk
0:04:39.8]} 11... b4 {[%clk 0:04:51]} 12. Ne2 {[%clk 0:04:39]} 12... O-O {[%clk
0:04:50]} 13. Nf4 {[%clk 0:04:38.2]} 13... Rc8 {[%clk 0:04:48.5]} 14. Bb2 {[%clk
0:04:37.5]} 14... a5 {[%clk 0:04:46.7]} 15. Rc1 {[%clk 0:04:36.4]} 15... h6
{[%clk 0:04:44.8]} 16. Qe2 {[%clk 0:04:34.8]} 16... Bd6 {[%clk 0:04:41.3]} 17.
Nd3 {[%clk 0:04:33]} 17... Re8 {[%clk 0:04:39.9]} 18. Rc2 {[%clk 0:04:32.3]}
18... Qe7 {[%clk 0:04:32.1]} 19. Rfc1 {[%clk 0:04:30.5]} 19... c5 {[%clk
0:04:17.3]} 20. cxd5 {[%clk 0:04:26.9]} 20... exd5 {[%clk 0:04:15.2]} 21. dxc5
{[%clk 0:04:22.3]} 21... Nxc5 {[%clk 0:04:12]} 22. Nxc5 {[%clk 0:04:21.4]} 22...
Bxc5 {[%clk 0:04:11.2]} 23. Bd4 {[%clk 0:04:19.6]} 23... Nd7 {[%clk 0:04:06.5]}
24. Bxd5 {[%clk 0:04:18.6]} 24... Qd6 {[%clk 0:04:01.3]} 25. Bf3 {[%clk
0:04:12.9]} 25... Nb6 {[%clk 0:03:58.7]} 26. Rxc5 {[%clk 0:04:10.5]} 1-0

[Event "Live Chess"]
[Site "Chess.com"]
[Date "2023.05.21"]
[Round "-"]
[White "ExIsambard"]
[Black "GEMdzq"]
[Result "0-1"]
[WhiteElo "1933"]
[BlackElo "2220"]
[TimeControl "300"]
[EndTime "16:22:22 PDT"]
[Termination "GEMdzq won on time"]

1. d4 {[%clk 0:04:57.9]} 1... Nf6 {[%clk 0:04:58.5]} 2. Nf3 {[%clk 0:04:56.7]}
2... e6 {[%clk 0:04:49.7]} 3. Bg5 {[%clk 0:04:56.2]} 3... c5 {[%clk 0:04:48.8]}
4. c3 {[%clk 0:04:54]} 4... Qb6 {[%clk 0:04:47.1]} 5. b3 {[%clk 0:04:52.4]} 5...
Nc6 {[%clk 0:04:43.4]} 6. e3 {[%clk 0:04:50.9]} 6... Be7 {[%clk 0:04:30.4]} 7.
Bd3 {[%clk 0:04:48.6]} 7... d6 {[%clk 0:04:28]} 8. Nbd2 {[%clk 0:04:47.2]} 8...
O-O {[%clk 0:04:19.6]} 9. h4 {[%clk 0:04:42.9]} 9... h6 {[%clk 0:04:12.3]} 10.
Qe2 {[%clk 0:04:40.9]} 10... Re8 {[%clk 0:04:01.2]} 11. Bxf6 {[%clk 0:04:37.7]}
11... Bxf6 {[%clk 0:04:00.1]} 12. g4 {[%clk 0:04:37.2]} 12... cxd4 {[%clk
0:03:53.8]} 13. cxd4 {[%clk 0:04:29]} 13... e5 {[%clk 0:03:42.7]} 14. dxe5
{[%clk 0:04:08.8]} 14... Nxe5 {[%clk 0:03:39.4]} 15. Nxe5 {[%clk 0:04:05.2]}
15... Bxe5 {[%clk 0:03:38]} 16. Rc1 {[%clk 0:04:03.2]} 16... d5 {[%clk
0:03:28.5]} 17. g5 {[%clk 0:03:57]} 17... Bd7 {[%clk 0:03:26.6]} 18. gxh6 {[%clk
0:03:52.5]} 18... Qxh6 {[%clk 0:03:24.8]} 19. Nf3 {[%clk 0:03:26.4]} 19... Bg4
{[%clk 0:03:12.2]} 20. Rg1 {[%clk 0:03:10.4]} 20... Qh5 {[%clk 0:03:09.3]} 21.
Rxg4 {[%clk 0:02:46.7]} 21... Qxg4 {[%clk 0:03:07.4]} 22. Kd2 {[%clk 0:02:45.3]}
22... Rac8 {[%clk 0:02:57.4]} 23. Rg1 {[%clk 0:02:43.9]} 23... Qb4+ {[%clk
0:02:48.6]} 24. Kd1 {[%clk 0:02:39.2]} 24... Qa3 {[%clk 0:02:45.2]} 25. Bc2
{[%clk 0:02:34.9]} 25... d4 {[%clk 0:02:30.6]} 26. Nxe5 {[%clk 0:02:15.7]} 26...
Rxe5 {[%clk 0:02:25.6]} 27. Qg4 {[%clk 0:02:12.9]} 27... Qf8 {[%clk 0:02:18.1]}
28. exd4 {[%clk 0:01:28.5]} 28... Re7 {[%clk 0:01:48.1]} 29. Qf5 {[%clk
0:01:21.2]} 29... g6 {[%clk 0:01:43.3]} 30. h5 {[%clk 0:01:18.6]} 30... Rc6
{[%clk 0:01:07.1]} 31. hxg6 {[%clk 0:01:12.2]} 31... fxg6 {[%clk 0:01:05.8]} 32.
Rxg6+ {[%clk 0:01:06.4]} 32... Rxg6 {[%clk 0:01:03.9]} 33. Qxg6+ {[%clk
0:01:03.5]} 33... Qg7 {[%clk 0:01:01.1]} 34. Kd2 {[%clk 0:00:54.6]} 34... Qxg6
{[%clk 0:00:55.8]} 35. Bxg6 {[%clk 0:00:54.5]} 35... Kg7 {[%clk 0:00:54.9]} 36.
Bd3 {[%clk 0:00:46.1]} 36... Kf6 {[%clk 0:00:51.1]} 37. f3 {[%clk 0:00:45.4]}
37... Rg7 {[%clk 0:00:50]} 38. Ke3 {[%clk 0:00:39.6]} 38... Rg2 {[%clk
0:00:48.5]} 39. a4 {[%clk 0:00:38]} 39... Rb2 {[%clk 0:00:43.8]} 40. Bc4 {[%clk
0:00:36.7]} 40... Kf5 {[%clk 0:00:42.5]} 41. d5 {[%clk 0:00:32.7]} 41... Ke5
{[%clk 0:00:41.6]} 42. f4+ {[%clk 0:00:29.7]} 42... Kd6 {[%clk 0:00:39.9]} 43.
Kd4 {[%clk 0:00:20.9]} 43... Rf2 {[%clk 0:00:38.4]} 44. Ke3 {[%clk 0:00:19.6]}
44... Rh2 {[%clk 0:00:36]} 45. Ke4 {[%clk 0:00:18.3]} 45... Rh4 {[%clk
0:00:33.5]} 46. Kf5 {[%clk 0:00:16.7]} 46... a6 {[%clk 0:00:30.9]} 47. Kg5
{[%clk 0:00:13.4]} 47... Rh2 {[%clk 0:00:28.2]} 48. f5 {[%clk 0:00:13]} 48...
Rg2+ {[%clk 0:00:26.8]} 49. Kf6 {[%clk 0:00:11.9]} 49... Rg1 {[%clk 0:00:24.6]}
50. Kf7 {[%clk 0:00:11.2]} 50... Ke5 {[%clk 0:00:24.1]} 51. f6 {[%clk
0:00:11.1]} 51... Rg5 {[%clk 0:00:19.6]} 52. d6 {[%clk 0:00:08.6]} 52... Kxd6
{[%clk 0:00:18.3]} 53. Ke8 {[%clk 0:00:07.5]} 53... Re5+ {[%clk 0:00:16.4]} 54.
Kf8 {[%clk 0:00:06.5]} 54... b5 {[%clk 0:00:14.7]} 55. f7 {[%clk 0:00:05.8]}
55... bxc4 {[%clk 0:00:13.9]} 56. bxc4 {[%clk 0:00:04]} 56... Rf5 {[%clk
0:00:12.3]} 57. c5+ {[%clk 0:00:03.9]} 57... Ke6 {[%clk 0:00:11]} 58. Kg8 {[%clk
0:00:03.6]} 58... Rxf7 {[%clk 0:00:10.9]} 59. c6 {[%clk 0:00:03.1]} 59... Rc7
{[%clk 0:00:10.6]} 60. a5 {[%clk 0:00:01.4]} 60... Rxc6 {[%clk 0:00:10.5]} 0-1

[Event "Live Chess"]
[Site "Chess.com"]
[Date "2023.05.21"]
[Round "-"]
[White "laminaaprod"]
[Black "elvenstar"]
[Result "1-0"]
[WhiteElo "2249"]
[BlackElo "1559"]
[TimeControl "300"]
[EndTime "16:22:24 PDT"]
[Termination "laminaaprod won on time"]

1. Nf3 {[%clk 0:04:55.8]} 1... d5 {[%clk 0:04:58.8]} 2. d4 {[%clk 0:04:53.1]}
2... Nf6 {[%clk 0:04:57.8]} 3. c4 {[%clk 0:04:53]} 3... e6 {[%clk 0:04:56.8]} 4.
Nc3 {[%clk 0:04:51.7]} 4... Bb4 {[%clk 0:04:55.1]} 5. e3 {[%clk 0:04:48.5]} 5...
O-O {[%clk 0:04:53.1]} 6. Be2 {[%clk 0:04:48.4]} 6... b6 {[%clk 0:04:49.7]} 7.
O-O {[%clk 0:04:48.3]} 7... Bb7 {[%clk 0:04:47.8]} 8. a3 {[%clk 0:04:48.2]} 8...
Be7 {[%clk 0:04:44.6]} 9. cxd5 {[%clk 0:04:42.5]} 9... Nxd5 {[%clk 0:04:42.8]}
10. Bd2 {[%clk 0:04:09.9]} 10... Nxc3 {[%clk 0:03:46.6]} 11. Bxc3 {[%clk
0:04:06]} 11... Bf6 {[%clk 0:03:42.9]} 12. Rc1 {[%clk 0:04:03.4]} 12... Nd7
{[%clk 0:03:40.4]} 13. b4 {[%clk 0:03:43]} 13... Re8 {[%clk 0:03:38.9]} 14. Qc2
{[%clk 0:03:37.1]} 14... Nf8 {[%clk 0:03:36.7]} 15. e4 {[%clk 0:03:31.8]} 15...
Rc8 {[%clk 0:03:26.7]} 16. Rfd1 {[%clk 0:03:27.4]} 16... Qe7 {[%clk 0:03:23.3]}
17. b5 {[%clk 0:03:22.6]} 17... Ng6 {[%clk 0:03:20.3]} 18. Bb4 {[%clk
0:03:18.7]} 18... Qd7 {[%clk 0:02:54.4]} 19. a4 {[%clk 0:03:08.8]} 19... Nf4
{[%clk 0:02:51.3]} 20. Bf1 {[%clk 0:03:01]} 20... Be7 {[%clk 0:02:44.3]} 21. Bd2
{[%clk 0:02:43.9]} 21... Ng6 {[%clk 0:02:27.3]} 22. Be3 {[%clk 0:02:20.6]} 22...
c6 {[%clk 0:01:47.1]} 23. Qb1 {[%clk 0:02:03]} 23... cxb5 {[%clk 0:01:42.7]} 24.
axb5 {[%clk 0:01:42.8]} 24... Rxc1 {[%clk 0:01:38.8]} 25. Rxc1 {[%clk
0:01:41.9]} 25... Rc8 {[%clk 0:01:36.4]} 26. Rxc8+ {[%clk 0:01:36.9]} 26... Qxc8
{[%clk 0:01:32.3]} 27. Bd3 {[%clk 0:01:36.6]} 27... Qc3 {[%clk 0:01:26.1]} 28.
Bd2 {[%clk 0:01:20.5]} 28... Qc7 {[%clk 0:01:14.6]} 29. Qa2 {[%clk 0:01:11.2]}
29... Bc8 {[%clk 0:01:02.2]} 30. g3 {[%clk 0:01:05.8]} 30... h6 {[%clk
0:00:54.3]} 31. Kf1 {[%clk 0:01:00.8]} 31... Nf8 {[%clk 0:00:21.8]} 32. Ke2
{[%clk 0:00:48.1]} 32... Nd7 {[%clk 0:00:17.7]} 33. Qxa7 {[%clk 0:00:46.2]}
33... Qxa7 {[%clk 0:00:13.9]} 34. Be3 {[%clk 0:00:45.8]} 34... Qa2+ {[%clk
0:00:11.6]} 35. Bd2 {[%clk 0:00:45.7]} 35... Qb3 {[%clk 0:00:09.8]} 36. Ne1
{[%clk 0:00:44.9]} 36... Nb8 {[%clk 0:00:07.8]} 37. Bc2 {[%clk 0:00:44.4]} 37...
Qxb5+ {[%clk 0:00:06]} 38. Bd3 {[%clk 0:00:44.3]} 38... Qb3 {[%clk 0:00:04.5]}
39. f3 {[%clk 0:00:43.4]} 39... Nc6 {[%clk 0:00:02.7]} 40. Bc2 {[%clk 0:00:43]}
40... Qb5+ {[%clk 0:00:00.9]} 41. Bd3 {[%clk 0:00:42]} 1-0

[Event "Live Chess"]
[Site "Chess.com"]
[Date "2023.05.21"]
[Round "-"]
[White "alanmike75"]
[Black "toog"]
[Result "0-1"]
[WhiteElo "1535"]
[BlackElo "2582"]
[TimeControl "300"]
[EndTime "16:22:42 PDT"]
[Termination "toog won by resignation"]

1. e4 {[%clk 0:04:57.3]} 1... c5 {[%clk 0:04:53.5]} 2. Nf3 {[%clk 0:04:55.7]}
2... Nc6 {[%clk 0:04:52.7]} 3. d4 {[%clk 0:04:54.6]} 3... cxd4 {[%clk
0:04:52.6]} 4. Nxd4 {[%clk 0:04:53.4]} 4... Nf6 {[%clk 0:04:52.5]} 5. Nxc6
{[%clk 0:04:52.1]} 5... bxc6 {[%clk 0:04:50.6]} 6. Bd3 {[%clk 0:04:50.9]} 6...
e5 {[%clk 0:04:47.8]} 7. O-O {[%clk 0:04:49.6]} 7... d5 {[%clk 0:04:46.3]} 8.
Re1 {[%clk 0:04:42.5]} 8... dxe4 {[%clk 0:04:41.9]} 9. Bc4 {[%clk 0:04:36.9]}
9... Qxd1 {[%clk 0:04:41.8]} 10. Rxd1 {[%clk 0:04:35.1]} 10... Bc5 {[%clk
0:04:40]} 11. Nc3 {[%clk 0:04:31.2]} 11... Bf5 {[%clk 0:04:37.1]} 12. h3 {[%clk
0:04:25.3]} 12... O-O {[%clk 0:04:35]} 13. Bg5 {[%clk 0:04:23.2]} 13... Rab8
{[%clk 0:04:28.5]} 14. b3 {[%clk 0:04:21.3]} 14... Bd4 {[%clk 0:04:26.8]} 15.
Bd2 {[%clk 0:04:17.6]} 15... Rfd8 {[%clk 0:04:24.7]} 16. Rab1 {[%clk 0:04:13.1]}
16... h6 {[%clk 0:04:12]} 17. Ne2 {[%clk 0:04:11.3]} 17... Bb6 {[%clk
0:04:10.1]} 18. Ng3 {[%clk 0:04:08.6]} 18... Bg6 {[%clk 0:04:09]} 19. Bc3 {[%clk
0:04:03.5]} 19... e3 {[%clk 0:04:07.2]} 20. fxe3 {[%clk 0:03:58.9]} 20... Bxe3+
{[%clk 0:04:03.7]} 21. Kf1 {[%clk 0:03:53.6]} 21... Bf4 {[%clk 0:04:01.9]} 22.
Be1 {[%clk 0:03:40.4]} 22... Bxc2 {[%clk 0:03:59.4]} 0-1